bitfinex/quotes_SOLUSD_20250305
["timestamp","ask_amount","ask_price","bid_price","bid_amount"]
[1741202740964,5.8716,145.83,145.74,330.64964886]
[1741202741167,7.67225718,145.83,145.74,330.64964886]
[1741202741375,0.14216157,145.82,145.74,330.64964886]
[1741202741679,0.28432314,145.82,145.74,18.64964886]
[1741202741867,1.8008796,145.81,145.72,0.033]
[1741202742255,2.08537926,145.82,145.72,0.033]
[1741202743491,79.46290209,145.81,145.72,0.033]
[1741202744480,2.08537926,145.82,145.72,0.033]
[1741202744481,81.26391081,145.8,145.72,0.033]
[1741202744682,81.26391081,145.8,145.72,312.033]
[1741202744884,0.14216157,145.79,145.72,0.033]
[1741202745074,79.46290209,145.78,145.72,0.033]
[1741202745471,1.94347381,145.77,145.72,0.033]
[1741202745670,5.8716,145.76,145.72,0.033]
[1741202746083,1.94384338,145.75,145.67,111.393]
[1741202746290,0.14216157,145.73,145.67,0.033]
[1741202746485,1.94421342,145.73,145.67,0.033]
[1741202747079,0.42648471,145.72,145.67,0.033]
[1741202747277,1.9444639,145.71,145.61,2.7673]
[1741202747475,1.80230233,145.71,145.62,18.64964886]
[1741202748170,0.14216157,145.71,145.62,18.64964886]
[1741202748371,1.80232943,145.73,145.62,18.64964886]
[1741202748565,0.14216157,145.73,145.63,0.14216157]
[1741202748773,0.14216157,145.73,145.72,0.033]
[1741202748987,0.14216157,145.73,145.63,0.14216157]
[1741202749574,1.94413874,145.73,145.63,0.14216157]
[1741202749785,1.80197717,145.73,145.63,0.14216157]
[1741202750093,79.46290209,145.74,145.64,18.64964886]
[1741202750768,79.46290209,145.74,145.65,0.14216157]
[1741202750974,5.8716,145.76,145.67,18.79181043]
[1741202751203,5.8716,145.76,145.67,99.69181043]
[1741202752074,79.46290209,145.81,145.69,0.14216157]
[1741202752278,85.33450209,145.8,145.7,18.64964886]
[1741202752481,1.80103742,145.79,145.7,18.64964886]
[1741202752679,0.42648471,145.78,145.69,80.9]
[1741202752884,79.46290209,145.77,145.68,6.0759]
[1741202753204,79.46290209,145.77,145.7,18.64964886]
[1741202753578,79.46290209,145.77,145.68,6.0759]
[1741202753778,79.46290209,145.77,145.67,6.72]
[1741202753993,0.14216157,145.76,145.67,6.72]
[1741202754499,79.46290209,145.77,145.67,32.23444886]
[1741202754702,79.46290209,145.77,145.67,25.36964886]
[1741202755302,79.46290209,145.77,145.67,32.23424886]
[1741202755723,79.46290209,145.77,145.67,32.91278985]
[1741202756007,79.46290209,145.77,145.68,18.79181043]
[1741202756178,79.46290209,145.77,145.67,6.72]
[1741202756597,79.46290209,145.77,145.68,312.0]
[1741202756899,7.67309075,145.8,145.7,0.14216157]
[1741202756900,79.46290209,145.79,145.7,0.14216157]
[1741202757283,1.94327236,145.78,145.69,18.64964886]
[1741202757483,1.80135534,145.77,145.69,18.64964886]
[1741202758191,79.60506366,145.76,145.65,80.9]
[1741202758396,0.14216157,145.74,145.65,80.9]
[1741202758571,79.46290209,145.73,145.66,18.64964886]
[1741202758995,79.46290209,145.73,145.67,0.14216157]
[1741202759201,79.46290209,145.73,145.68,18.64964886]
[1741202759518,0.14216157,145.78,145.68,99.54964886]
[1741202759723,79.46290209,145.77,145.68,99.54964886]
[1741202760309,0.14216157,145.76,145.68,99.54964886]
[1741202760619,0.14216157,145.74,145.68,80.9]
[1741202760821,79.46290209,145.73,145.65,18.64964886]
[1741202760998,79.46290209,145.73,145.65,25.51534886]
[1741202761199,79.46290209,145.73,145.66,0.14216157]
[1741202761419,79.46290209,145.73,145.66,1.24744587]
[1741202761615,0.14216157,145.77,145.67,18.64964886]
[1741202761926,79.46290209,145.76,145.67,99.54964886]
[1741202762111,1.94347989,145.75,145.67,80.9]
[1741202762428,0.14216157,145.73,145.64,87.473]
[1741202762599,79.60506366,145.73,145.65,18.64964886]
[1741202762806,79.46290209,145.76,145.66,0.14216157]
[1741202763011,79.46290209,145.75,145.66,81.04216157]
[1741202763317,1.94419657,145.77,145.64,150.76558471]
[1741202763318,81.69099463,145.74,145.64,6.573]
[1741202763823,81.69099463,145.74,145.65,18.64964886]
[1741202764518,5.8716,145.73,145.65,18.64964886]
[1741202764718,79.46290209,145.72,145.65,18.64964886]
[1741202764914,79.46290209,145.72,145.64,18.64964886]
[1741202765094,79.46290209,145.72,145.63,392.9]
[1741202765095,79.60506366,145.71,145.63,392.9]
[1741202765301,79.60506366,145.71,145.63,80.9]
[1741202766647,79.60506366,145.71,145.62,0.033]
[1741202766648,79.8893868,145.7,145.62,0.033]
[1741202766801,79.60506366,145.69,145.62,0.033]
[1741202767127,0.14216157,145.67,145.62,0.033]
[1741202767300,79.46290209,145.66,145.62,0.033]
[1741202768437,79.46290209,145.66,145.62,0.0001]
[1741202768438,7.81655253,145.65,145.62,0.0001]
[1741202768925,7.81655253,145.65,145.58,80.9]
[1741202769220,79.46290209,145.64,145.57,0.033]
[1741202769626,7.81655253,145.65,145.57,0.033]
[1741202769627,79.8893868,145.63,145.57,0.033]
[1741202769811,81.6924715,145.63,145.57,0.033]
[1741202770523,0.14216157,145.61,145.57,0.033]
[1741202770830,79.46290209,145.6,145.57,0.033]
[1741202771037,79.46290209,145.6,145.53,0.033]
[1741202771038,79.46290209,145.59,145.53,0.033]
[1741202773231,79.46290209,145.63,145.54,0.14216157]
[1741202774035,79.46290209,145.63,145.54,18.79181043]
[1741202774344,0.14216157,145.62,145.53,0.17516157]
[1741202774568,81.26618299,145.61,145.56,0.033]
[1741202775347,79.46290209,145.61,145.56,0.033]
[1741202775936,79.46290209,145.63,145.56,0.033]
[1741202776137,79.46290209,145.62,145.56,0.033]
[1741202776340,79.46290209,145.61,145.56,0.033]
[1741202776935,5.8716,145.65,145.57,0.14216157]
[1741202777156,85.33450209,145.69,145.59,0.14216157]
[1741202777349,79.46290209,145.68,145.59,81.04216157]
[1741202777862,79.46290209,145.68,145.6,18.79181043]
[1741202778069,79.46290209,145.68,145.6,48.37955991]
[1741202778230,79.46290209,145.71,145.62,0.14216157]
[1741202778430,79.46290209,145.71,145.62,99.69181043]
[1741202778656,79.46290209,145.71,145.62,100.37142948]
[1741202779168,79.46290209,145.73,145.64,18.79181043]
[1741202779459,79.46290209,145.73,145.64,330.79181043]
[1741202779633,79.46290209,145.73,145.64,330.64964886]
[1741202780528,0.03,145.74,145.66,18.64964886]
[1741202781038,0.03,145.74,145.67,7.00696157]
[1741202781451,0.03,145.74,145.68,18.64964886]
[1741202784153,0.03,145.74,145.68,330.64964886]
[1741202784358,0.03,145.74,145.68,18.64964886]
[1741202784939,0.03,145.74,145.65,0.14216157]
[1741202785135,0.03,145.74,145.66,18.64964886]
[1741202785335,0.03,145.74,145.69,0.14216157]
[1741202786536,0.03,145.74,145.67,0.14216157]
[1741202787143,0.03,145.74,145.67,7.00686157]
[1741202787339,0.03,145.74,145.72,0.56864628]
[1741202787570,0.03,145.74,145.73,49.48407288]
[1741202787771,0.03,145.78,145.74,0.14216157]
[1741202787954,0.03,145.78,145.76,0.14216157]
[1741202789662,0.03,145.78,145.77,2.5695]
[1741202789860,0.03,145.78,145.77,22.46404486]
[1741202790057,0.03,145.78,145.77,21.78779514]
[1741202790651,0.03,145.78,145.77,28.64789514]
[1741202790854,0.03,145.78,145.77,346.82409514]
[1741202791035,0.03,145.78,145.77,376.41184462]
[1741202791238,79.46290209,145.87,145.77,282.21184462]
[1741202791441,0.03,145.89,145.82,0.14216157]
[1741202791738,0.03,145.89,145.82,18.79181043]
[1741202792057,0.03,145.89,145.82,99.69181043]
[1741202793673,0.03,145.89,145.86,0.56864628]
[1741202793853,0.03,145.89,145.86,247.95639576]
[1741202794057,0.03,145.89,145.86,217.94216157]
[1741202794376,0.03,145.89,145.88,330.64964886]
[1741202794878,0.03,145.89,145.83,226.7455]
[1741202795165,0.03,145.89,145.83,89.8455]
[1741202795546,0.03,145.89,145.84,18.64964886]
[1741202795745,0.03,145.89,145.83,8.9455]
[1741202795942,0.03,145.89,145.83,2.5101]
[1741202796162,0.03,145.89,145.83,21.15974886]
[1741202796875,0.03,145.89,145.83,2.5101]
[1741202797042,81.26282621,145.88,145.8,80.9]
[1741202797246,79.46290209,145.87,145.79,6.4354]
[1741202797455,79.46290209,145.87,145.8,18.64964886]
[1741202798071,74.93746503,145.87,145.8,18.64964886]
[1741202799747,75.36394974,145.86,145.79,318.4354]
[1741202799952,74.93746503,145.85,145.78,2.5101]
[1741202800167,74.93746503,145.84,145.79,18.64964886]
[1741202800367,74.93746503,145.88,145.79,18.64964886]
[1741202800958,74.93746503,145.88,145.8,0.14216157]
[1741202801969,74.93746503,145.88,145.79,99.54964886]
[1741202802964,1.94215827,145.87,145.79,411.54964886]
[1741202803164,1.94215827,145.87,145.79,99.54964886]
[1741202803867,74.93746503,145.86,145.79,18.64964886]
[1741202805248,0.03,145.89,145.81,18.64964886]
[1741202805448,0.03,145.89,145.81,99.54964886]
[1741202806076,0.03,145.89,145.82,312.0]
[1741202807261,0.03,145.89,145.83,18.64964886]
[1741202807571,0.14216157,145.88,145.81,80.9]
[1741202807873,1.94234228,145.88,145.81,80.9]
[1741202808169,0.14216157,145.88,145.82,18.64964886]
[1741202808667,0.28432314,145.88,145.81,80.9]
[1741202808872,0.14216157,145.86,145.77,80.9]
[1741202809088,74.93746503,145.85,145.77,80.9]
[1741202809571,74.93746503,145.85,145.78,18.68264886]
[1741202810561,74.93746503,145.85,145.78,330.68264886]
[1741202810751,74.93746503,145.85,145.78,18.68264886]
[1741202811152,74.93746503,145.84,145.78,0.033]
[1741202811865,1.9426399,145.86,145.78,0.033]
[1741202811866,74.93746503,145.83,145.78,0.033]
[1741202818471,74.93746503,145.83,145.78,312.033]
[1741202818776,74.93746503,145.83,145.78,0.033]
[1741202822265,74.93746503,145.82,145.78,0.033]
[1741202826077,75.0796266,145.81,145.78,0.0001]
[1741202826283,76.88050362,145.81,145.78,0.0001]
[1741202826474,0.14216157,145.79,145.78,0.0001]
[1741202826676,1.94336421,145.79,145.78,0.0001]
[1741202827065,1.94336421,145.79,145.72,18.64964886]
[1741202827265,0.14216157,145.77,145.7,2.3821]
[1741202827571,1.9436708,145.77,145.7,2.3821]
[1741202827764,1.9436708,145.77,145.7,18.64964886]
[1741202827997,5.8716,145.78,145.7,18.64964886]
[1741202828164,0.14216157,145.77,145.68,18.64964886]
[1741202828693,0.14216157,145.77,145.67,18.64964886]
[1741202829186,2.37011441,145.77,145.67,18.64964886]
[1741202829384,0.14216157,145.77,145.67,18.64964886]
[1741202829590,0.14216157,145.77,145.67,37.181423]
[1741202830011,0.14216157,145.77,145.67,44.046223]
[1741202830178,5.8716,145.78,145.69,18.64964886]
[1741202830502,6.44024628,145.81,145.69,37.181423]
[1741202830707,0.14216157,145.79,145.69,44.045123]
[1741202831209,82.80109342,145.8,145.69,44.045123]
[1741202831686,82.80109342,145.8,145.69,18.64964886]
[1741202831687,0.56864628,145.79,145.69,18.64964886]
[1741202831888,0.14216157,145.77,145.69,18.64964886]
[1741202832097,81.0,145.76,145.69,18.64964886]
[1741202833493,81.0,145.76,145.69,25.51344886]
[1741202833793,81.0,145.8,145.73,18.64964886]
[1741202833977,81.0,145.8,145.73,39.572123]
[1741202834396,81.0,145.8,145.73,21.04034886]
[1741202836316,0.14216157,145.78,145.69,2.3907]
[1741202836526,6.01376157,145.78,145.69,2.3907]
[1741202836823,6.01376157,145.78,145.7,18.64964886]
[1741202837025,81.0,145.77,145.7,18.64964886]
[1741202837202,81.0,145.77,145.7,330.64964886]
[1741202838223,0.14216157,145.76,145.7,18.64964886]
[1741202839421,0.14216157,145.76,145.66,143.3511]
[1741202839422,81.0,145.75,145.66,6.4511]
[1741202839628,81.0,145.74,145.66,13.3163]
[1741202840499,81.0,145.74,145.67,18.64964886]
[1741202840706,81.0,145.74,145.67,25.51434886]
[1741202840906,81.0,145.74,145.67,18.64964886]
[1741202841113,81.0,145.74,145.69,18.64964886]
[1741202841724,81.0,145.74,145.68,18.64964886]
[1741202842223,81.0,145.77,145.68,118.081423]
[1741202842408,81.0,145.76,145.68,118.081423]
[1741202842602,81.0,145.76,145.68,99.54964886]
[1741202843127,81.0,145.76,145.68,106.41394886]
[1741202843533,82.94338203,145.75,145.66,6.4511]
[1741202843834,82.94338203,145.75,145.67,18.64964886]
[1741202844604,81.0,145.74,145.66,18.64964886]
[1741202844806,82.94405069,145.73,145.66,18.64964886]
[1741202845425,81.42648471,145.72,145.66,5.327669]
[1741202845605,0.14216157,145.7,145.66,5.327669]
[1741202845925,81.0,145.69,145.66,5.327669]
[1741202846720,81.0,145.68,145.66,5.327669]
[1741202847419,81.0,145.67,145.66,5.327669]
[1741202847733,0.14216157,145.68,145.63,0.033]
[1741202847911,0.14216157,145.65,145.63,0.033]
[1741202848112,81.0,145.64,145.63,0.033]
[1741202850317,1.80265242,145.68,145.63,0.033]
[1741202850318,81.0,145.67,145.63,0.033]
[1741202852414,0.14216157,145.66,145.63,0.033]
[1741202852618,1.94480905,145.66,145.63,0.033]
[1741202853131,0.56864628,145.64,145.56,0.033]
[1741202853315,0.14216157,145.62,145.56,0.033]
[1741202853718,82.80324515,145.63,145.56,0.033]
[1741202854028,0.14216157,145.62,145.56,0.033]
[1741202854426,82.80324515,145.63,145.56,0.033]
[1741202854626,81.0,145.63,145.56,0.033]
[1741202854939,1.94527108,145.62,145.56,0.033]
[1741202855239,0.14216157,145.6,145.56,0.033]
[1741202855444,0.14216157,145.58,145.56,0.033]
[1741202855735,1.9459262,145.58,145.56,0.033]
[1741202856121,0.14216157,145.57,145.56,0.0001]
[1741202856333,81.14216157,145.57,145.56,0.0001]
[1741202856527,81.0,145.57,145.56,0.0001]
[1741202857444,81.0,145.63,145.56,0.0001]
[1741202859143,88.67468465,145.68,145.58,18.64964886]
[1741202859339,81.0,145.67,145.6,18.64964886]
[1741202859925,81.0,145.67,145.58,18.64964886]
[1741202860129,82.80279176,145.67,145.58,18.64964886]
[1741202860649,82.80279176,145.67,145.58,330.64964886]
[1741202860935,81.0,145.67,145.58,330.64964886]
[1741202861157,81.0,145.67,145.58,367.24187745]
[1741202861321,81.0,145.67,145.6,18.64964886]
[1741202861744,81.0,145.67,145.58,48.37287745]
[1741202861918,2.22917704,145.66,145.58,18.64964886]
[1741202862126,0.14216157,145.65,145.58,18.64964886]
[1741202862422,82.80308991,145.64,145.58,18.64964886]
[1741202863046,81.42648471,145.63,145.57,8.3734]
[1741202863235,81.42648471,145.63,145.57,2.3089]
[1741202864443,0.42648471,145.61,145.56,0.0001]
[1741202864622,81.0,145.6,145.56,0.0001]
[1741202864823,81.42648471,145.59,145.56,0.0001]
[1741202865043,82.80360302,145.7,145.58,32.25522859]
[1741202865228,81.0,145.69,145.59,29.72322859]
[1741202865429,0.28432314,145.66,145.58,2.532]
[1741202865629,0.14216157,145.65,145.58,2.532]
[1741202865938,83.08724721,145.64,145.58,2.532]
[1741202866548,0.42648471,145.68,145.59,18.64964886]
[1741202867442,2.22907652,145.68,145.59,330.64964886]
[1741202868037,0.42648471,145.68,145.59,330.64964886]
[1741202870333,0.42648471,145.68,145.61,18.64964886]
[1741202870632,81.0,145.67,145.61,18.64964886]
[1741202871344,81.0,145.67,145.61,55.24037745]
[1741202871550,81.0,145.7,145.63,48.37287745]
[1741202871945,81.0,145.7,145.63,129.27287745]
[1741202872252,81.0,145.7,145.67,18.64964886]
[1741202872641,81.0,145.7,145.68,2.5626]
[1741202872952,81.0,145.73,145.69,18.64964886]
[1741202873140,81.0,145.77,145.69,18.64964886]
[1741202873464,1.83171512,145.78,145.69,330.64964886]
[1741202873465,81.0,145.76,145.69,330.64964886]
[1741202874172,81.0,145.76,145.69,337.51344886]
[1741202874456,81.0,145.76,145.69,330.64964886]
[1741202875155,0.03,145.7,145.69,330.64964886]
[1741202875344,81.0,145.76,145.69,330.64964886]
[1741202877639,0.03,145.78,145.69,448.08680265]
[1741202878039,0.03,145.78,145.72,6.6475]
[1741202878378,0.03,145.78,145.74,2.3322]
[1741202881373,0.03,145.78,145.75,18.64964886]
[1741202883967,0.03,145.78,145.75,48.32310265]
[1741202884272,0.03,145.78,145.75,360.32310265]
[1741202884473,0.03,145.8,145.78,8.8921]
[1741202884774,0.03,145.8,145.79,18.64964886]
[1741202885163,81.0,145.87,145.79,18.64964886]
[1741202887571,81.0,145.87,145.79,330.64964886]
[1741202887773,81.0,145.87,145.79,411.54964886]
[1741202887977,81.0,145.87,145.79,441.22310265]
[1741202888187,81.0,145.87,145.79,129.22310265]
[1741202888778,81.0,145.87,145.79,99.54964886]
[1741202889861,81.42648471,145.86,145.79,18.64964886]
[1741202890084,83.22665596,145.86,145.79,18.64964886]
[1741202890568,81.42648471,145.86,145.79,18.64964886]
[1741202891006,81.0,145.86,145.79,18.64964886]
[1741202893501,81.0,145.86,145.79,55.18220265]
[1741202893865,81.0,145.86,145.79,55.85774289]
[1741202894265,0.03,145.88,145.83,2.5043]
[1741202896291,0.17216157,145.88,145.83,2.5043]
[1741202896496,0.42648471,145.86,145.79,2.4468]
[1741202896675,81.0,145.85,145.79,2.4468]
[1741202897072,81.0,145.85,145.8,18.64964886]
[1741202898073,81.0,145.84,145.79,2.4468]
[1741202898386,81.0,145.83,145.79,2.4468]
[1741202899594,81.0,145.82,145.79,2.4468]
[1741202899796,81.0,145.82,145.75,8.5419]
[1741202899981,81.0,145.81,145.75,8.5419]
[1741202900382,81.0,145.81,145.76,18.64964886]
[1741202900784,81.42648471,145.8,145.75,8.5419]
[1741202901700,0.42648471,145.78,145.71,119.8602]
[1741202901875,81.0,145.77,145.71,119.8602]
[1741202902085,81.0,145.77,145.72,18.64964886]
[1741202902382,81.0,145.81,145.72,18.64964886]
[1741202902583,81.0,145.8,145.72,18.64964886]
[1741202902775,81.0,145.8,145.72,330.64964886]
[1741202904584,0.42648471,145.79,145.72,18.64964886]
[1741202904787,0.28432314,145.79,145.72,18.64964886]
[1741202905086,81.14216157,145.8,145.72,18.64964886]
[1741202906798,81.0,145.79,145.72,18.64964886]
[1741202908198,0.42648471,145.78,145.72,18.64964886]
[1741202908401,81.0,145.77,145.72,18.64964886]
[1741202908917,81.0,145.77,145.71,431.8602]
[1741202909298,81.0,145.77,145.71,119.8602]
[1741202909832,81.42648471,145.76,145.71,113.8087]
[1741202910003,81.0,145.75,145.67,8.9078]
[1741202910315,81.0,145.74,145.67,8.9078]
[1741202911435,81.42648471,145.73,145.67,8.9078]
[1741202911622,81.0,145.72,145.64,2.4102]
[1741202911810,81.0,145.71,145.64,2.4102]
[1741202912419,60.9,145.7,145.64,2.4102]
[1741202914239,60.9,145.7,145.65,18.64964886]
[1741202914626,0.28432314,145.74,145.65,18.64964886]
[1741202914840,0.28432314,145.73,145.65,18.64964886]
[1741202915412,0.28432314,145.73,145.65,330.64964886]
[1741202915956,0.28432314,145.71,145.65,312.0]
[1741202916118,0.28432314,145.71,145.64,2.4102]
[1741202916645,60.9,145.7,145.64,2.4102]
[1741202917648,0.42648471,145.69,145.64,2.4102]
[1741202917951,0.42648471,145.67,145.64,0.033]
[1741202918115,60.9,145.68,145.64,0.033]
[1741202919618,2.22907728,145.67,145.64,0.0001]
[1741202921221,0.42648471,145.67,145.64,0.0001]
[1741202921729,60.9,145.66,145.64,0.0001]
[1741202924148,60.9,145.71,145.64,0.0001]
[1741202925231,60.9,145.71,145.65,45.86346198]
[1741202925932,60.9,145.71,145.65,27.28764886]
[1741202927154,60.9,145.71,145.65,339.28764886]
[1741202927451,0.14216157,145.75,145.66,18.57581312]
[1741202927651,60.9,145.74,145.66,18.57581312]
[1741202928335,60.9,145.74,145.67,44.09026198]
[1741202929144,60.9,145.74,145.67,37.22546198]
[1741202929766,60.9,145.74,145.66,18.64964886]
[1741202930053,60.9,145.74,145.66,37.22546198]
[1741202930432,0.03,145.77,145.7,18.64964886]
[1741202930859,0.45648471,145.77,145.7,18.64964886]
[1741202931038,0.42648471,145.75,145.67,89.3987]
[1741202931233,60.9,145.74,145.67,8.4987]
[1741202932754,60.9,145.74,145.68,6.8643]
[1741202932945,60.9,145.74,145.69,18.64964886]
[1741202933660,60.9,145.74,145.68,18.64964886]
[1741202934045,60.9,145.74,145.7,312.0]
[1741202934246,60.9,145.76,145.7,312.0]
[1741202935136,0.42648471,145.75,145.68,18.64964886]
[1741202935750,0.28432314,145.75,145.68,18.64964886]
[1741202936761,62.8438292,145.76,145.68,18.64964886]
[1741202937058,61.04216157,145.76,145.68,18.64964886]
[1741202938147,61.04216157,145.76,145.68,330.64964886]
[1741202938746,0.45648471,145.75,145.68,330.64964886]
[1741202939261,0.42648471,145.73,145.67,8.4987]
[1741202939459,61.32648471,145.73,145.67,8.4987]
[1741202939859,60.9,145.73,145.67,8.4987]
[1741202940159,0.03,145.75,145.68,18.64964886]
[1741202940667,2.25802891,145.75,145.67,8.4987]
[1741202941051,60.9,145.74,145.67,8.4987]
[1741202941362,60.9,145.74,145.68,18.64964886]
[1741202941947,0.03,145.75,145.68,18.64964886]
[1741202942249,0.03,145.75,145.7,312.0]
[1741202943738,0.03,145.75,145.68,18.64964886]
[1741202943946,0.03,145.75,145.69,18.64964886]
[1741202944145,0.03,145.75,145.69,37.22546198]
[1741202945065,0.03,145.75,145.69,118.12546198]
[1741202945374,0.03,145.75,145.69,99.54964886]
[1741202946855,0.03,145.75,145.69,411.54964886]
[1741202947456,0.03,145.75,145.69,118.12546198]
[1741202947659,0.03,145.75,145.69,124.98916198]
[1741202947977,0.03,145.75,145.69,118.12546198]
[1741202948265,0.03,145.75,145.7,18.57581312]
[1741202948569,0.03,145.75,145.74,24.96734886]
[1741202950477,0.03,145.75,145.74,336.96734886]
[1741202952371,0.03,145.75,145.74,43.54316198]
[1741202952577,0.03,145.75,145.74,24.96734886]
[1741202954274,0.03,145.75,145.74,31.82884886]
[1741202954456,0.03,145.75,145.74,24.96734886]
[1741202955271,0.03,145.75,145.74,336.96734886]
[1741202958878,0.03,145.75,145.74,330.64964886]
[1741202963259,0.03,145.75,145.74,18.64964886]
[1741202966065,0.03,145.75,145.72,2.2809]
[1741202966386,0.03,145.75,145.72,314.2809]
[1741202967168,0.03,145.75,145.71,18.64964886]
[1741202967387,0.03,145.75,145.7,18.64964886]
[1741202967983,0.45648471,145.75,145.69,1.6224]
[1741202968393,0.03,145.75,145.7,18.64964886]
[1741202968579,0.45648471,145.75,145.69,1.6224]
[1741202968767,60.9,145.74,145.69,1.6224]
[1741202969598,60.9,145.73,145.67,18.64964886]
[1741202969775,60.9,145.72,145.67,18.64964886]
[1741202970314,60.9,145.72,145.67,330.64964886]
[1741202973892,60.9,145.72,145.67,312.0]
[1741202974098,0.42648471,145.71,145.65,1.6111]
[1741202974314,60.9,145.7,145.65,1.6111]
[1741202974484,60.9,145.7,145.64,0.0001]
[1741202974485,61.32648471,145.69,145.64,0.0001]
[1741202974685,0.42648471,145.67,145.64,0.0001]
[1741202975003,62.84459677,145.68,145.64,0.0001]
[1741202975004,60.9,145.66,145.64,0.0001]
[1741202979807,60.9,145.65,145.64,0.0001]
[1741202980506,61.32648471,145.65,145.64,0.0001]
[1741202980717,0.42648471,145.65,145.64,0.0001]
[1741202982376,0.42648471,145.64,145.63,0.0001]
[1741202982606,2.22960683,145.64,145.63,0.0001]
[1741202982787,2.22960683,145.64,145.57,1.6563]
[1741202983682,2.22960683,145.64,145.57,313.6563]
[1741202984112,0.42648471,145.64,145.57,313.6563]
[1741202984288,0.42648471,145.64,145.58,18.64964886]
[1741202985119,0.42648471,145.68,145.58,18.64964886]
[1741202985302,1.80284608,145.67,145.58,18.64964886]
[1741202985890,0.14216157,145.65,145.58,18.64964886]
[1741202986221,81.0,145.64,145.58,18.64964886]
[1741202988497,81.0,145.64,145.61,312.0]
[1741202988697,0.42648471,145.67,145.61,312.0]
[1741202989009,81.0,145.66,145.61,312.0]
[1741202991124,0.42648471,145.65,145.61,312.0]
[1741202991421,0.42648471,145.65,145.58,99.54964886]
[1741202991624,81.0,145.64,145.58,18.64964886]
[1741202992219,81.0,145.64,145.58,18.68264886]
[1741202994122,81.0,145.64,145.58,330.68264886]
[1741202995005,0.42648471,145.65,145.58,330.68264886]
[1741202995006,81.0,145.63,145.58,330.68264886]
[1741202996125,81.0,145.63,145.58,312.033]
[1741202998403,81.42648471,145.62,145.58,312.033]
[1741202998635,0.42648471,145.6,145.57,1.6563]
[1741202998933,81.0,145.59,145.56,0.0001]
[1741202999100,81.0,145.58,145.56,0.0001]
[1741203000511,81.0,145.63,145.56,0.0001]
[1741203000714,81.0,145.63,145.58,1.6526]
[1741203001226,81.0,145.63,145.59,18.64964886]
[1741203001410,81.0,145.67,145.59,30.54194026]
[1741203001605,81.0,145.67,145.62,18.64964886]
[1741203002023,81.0,145.67,145.59,18.64964886]
[1741203003040,81.0,145.67,145.59,30.54194026]
[1741203003214,0.03,145.68,145.61,36.65464026]
[1741203003409,0.03,145.68,145.64,18.64964886]
[1741203003609,0.03,145.68,145.63,1.6481]
[1741203003926,81.03,145.68,145.63,1.6481]
[1741203004616,0.42648471,145.67,145.63,1.6481]
[1741203005029,0.14216157,145.66,145.63,1.6481]
[1741203005232,81.42648471,145.65,145.59,20.16864886]
[1741203005545,81.28432314,145.65,145.59,20.16864886]
[1741203006541,0.14216157,145.64,145.59,1.519]
[1741203006910,81.0,145.63,145.59,1.519]
[1741203007129,81.0,145.62,145.59,1.519]
[1741203009851,81.0,145.62,145.6,18.64964886]
[1741203010043,81.03,145.68,145.6,37.22142247]
[1741203010237,0.03,145.68,145.63,6.043]
[1741203010947,0.03,145.68,145.65,1.5864]
[1741203013446,0.03,145.68,145.66,18.64964886]
[1741203014960,0.03,145.68,145.65,82.4864]
[1741203015252,0.03,145.68,145.66,18.64964886]
[1741203018851,0.03,145.68,145.66,100.22920362]
[1741203021162,0.03,145.68,145.66,99.54964886]
[1741203021660,0.03,145.68,145.66,18.64964886]
[1741203022160,0.03,145.68,145.66,19.32886327]
[1741203023152,0.03,145.68,145.67,0.56864628]
[1741203023344,0.03,145.72,145.69,18.64964886]
[1741203023544,0.03,145.72,145.69,100.2277349]
[1741203024264,0.03,145.72,145.69,99.54964886]
[1741203025363,0.03,145.72,145.69,411.54964886]
[1741203025866,0.03,145.72,145.69,99.54964886]
[1741203027551,0.03,145.72,145.69,18.64964886]
[1741203027947,0.03,145.72,145.68,1.5204]